{"text_format":"1","workbook":"xlsx","n_sheets":1,"sheets":["Лист3"],"not_rendered":{"charts":0,"images":0,"macros":0,"external_links":0,"defined_names":0,"comments":0,"pivot_tables":0},"unopened":[],"bounds":{"document_bytes":16777216,"sheet_cells":100000,"rows_first":2000,"rows_last":500,"rows_between":2000,"halvings":0,"cell_chars":16384,"cell_head_chars":4096},"cells_cut":0,"cells_raw":0,"read":"whole","date_system":"1900"}

{"sheet":"Лист3","index":0,"n_rows":135,"n_cols":17,"rows_kept":135,"cut":false,"hidden":false,"merged":[[99,8,99,9],[109,8,109,9],[108,8,108,9],[107,8,107,9],[106,8,106,9],[104,8,104,9],[105,0,105,7],[125,8,125,9],[117,8,117,9],[106,0,106,7],[114,0,114,7],[114,8,114,9],[113,8,113,9],[111,8,111,9],[112,0,112,7],[112,8,112,9],[110,0,110,7],[95,0,95,7],[100,0,100,7],[102,0,102,7],[111,0,111,7],[98,0,98,7],[109,0,109,7],[104,0,104,7],[97,0,97,7],[96,0,96,7],[113,0,113,7],[100,8,100,9],[108,0,108,7],[99,0,99,7],[110,8,110,9],[107,0,107,7],[102,8,102,9],[103,0,103,7],[101,0,101,7],[105,8,105,9],[127,0,127,7],[127,8,127,9],[115,0,115,7],[115,8,115,9],[116,0,116,7],[116,8,116,9],[122,0,122,7],[124,8,124,9],[121,8,121,9],[126,0,126,7],[117,0,117,7],[122,8,122,9],[121,0,121,7],[119,0,119,7],[118,8,118,9],[119,8,119,9],[120,0,120,7],[118,0,118,7],[120,8,120,9],[79,8,79,9],[82,8,82,9],[83,8,83,9],[87,0,87,7],[87,8,87,9],[126,8,126,9],[125,0,125,7],[123,0,123,7],[123,8,123,9],[124,0,124,7],[98,8,98,9],[97,8,97,9],[96,8,96,9],[103,8,103,9],[101,8,101,9],[78,0,78,7],[82,0,82,7],[88,0,88,7],[88,8,88,9],[79,0,79,7],[90,8,90,9],[89,8,89,9],[89,0,89,7],[90,0,90,7],[94,0,94,7],[93,0,93,7],[94,8,94,9],[93,8,93,9],[92,8,92,9],[67,8,67,9],[65,8,65,9],[69,8,69,9],[70,8,70,9],[95,8,95,9],[92,0,92,7],[71,8,71,9],[68,8,68,9],[91,0,91,7],[91,8,91,9],[74,8,74,9],[76,8,76,9],[75,8,75,9],[75,0,75,7],[72,8,72,9],[72,0,72,7],[73,0,73,7],[74,0,74,7],[86,0,86,7],[83,0,83,7],[84,0,84,7],[81,0,81,7],[85,0,85,7],[86,8,86,9],[84,8,84,9],[81,8,81,9],[85,8,85,9],[78,8,78,9],[71,0,71,7],[69,0,69,7],[80,0,80,7],[80,8,80,9],[77,0,77,7],[77,8,77,9],[76,0,76,7],[73,8,73,9],[43,0,43,7],[55,0,55,7],[70,0,70,7],[44,0,44,7],[66,0,66,7],[65,0,65,7],[64,0,64,7],[45,0,45,7],[48,0,48,7],[68,0,68,7],[52,8,52,9],[46,8,46,9],[51,8,51,9],[42,8,42,9],[47,8,47,9],[48,8,48,9],[49,8,49,9],[43,8,43,9],[67,0,67,7],[51,0,51,7],[50,0,50,7],[63,0,63,7],[61,0,61,7],[60,0,60,7],[53,0,53,7],[62,0,62,7],[58,0,58,7],[59,0,59,7],[64,8,64,9],[66,8,66,9],[44,8,44,9],[45,8,45,9],[50,8,50,9],[60,8,60,9],[63,8,63,9],[62,8,62,9],[61,8,61,9],[59,8,59,9],[41,8,41,9],[38,8,38,9],[22,8,22,9],[33,8,33,9],[34,8,34,9],[24,8,24,9],[25,8,25,9],[32,8,32,9],[27,8,27,9],[29,8,29,9],[31,8,31,9],[26,8,26,9],[28,8,28,9],[35,8,35,9],[36,8,36,9],[30,8,30,9],[2,0,2,13],[4,0,4,7],[17,8,17,9],[18,8,18,9],[20,8,20,9],[21,8,21,9],[15,8,15,9],[12,8,12,9],[13,8,13,9],[23,8,23,9],[0,9,0,13],[5,8,5,9],[6,8,6,9],[19,8,19,9],[14,8,14,9],[1,0,1,13],[3,0,3,13],[4,8,4,9],[9,0,9,7],[7,0,7,7],[6,0,6,7],[16,8,16,9],[7,8,7,9],[8,8,8,9],[10,0,10,7],[9,8,9,9],[11,8,11,9],[11,0,11,7],[14,0,14,7],[12,0,12,7],[13,0,13,7],[5,0,5,7],[10,8,10,9],[8,0,8,7],[31,0,31,7],[17,0,17,7],[32,0,32,7],[28,0,28,7],[27,0,27,7],[24,0,24,7],[30,0,30,7],[25,0,25,7],[29,0,29,7],[20,0,20,7],[21,0,21,7],[22,0,22,7],[23,0,23,7],[26,0,26,7],[15,0,15,7],[19,0,19,7],[16,0,16,7],[18,0,18,7],[58,8,58,9],[53,8,53,9],[54,0,54,7],[54,8,54,9],[57,0,57,7],[55,8,55,9],[56,0,56,7],[57,8,57,9],[56,8,56,9],[33,0,33,7],[34,0,34,7],[35,0,35,7],[52,0,52,7],[47,0,47,7],[40,0,40,7],[42,0,42,7],[49,0,49,7],[41,0,41,7],[46,0,46,7],[40,8,40,9],[37,8,37,9],[39,0,39,7],[38,0,38,7],[36,0,36,7],[37,0,37,7],[39,8,39,9]]}
[null,null,null,null,null,null,null,null,null,"УТВЕРЖДЕНО Решением совета депутатов Серебрянского сельского поселения №16 от 23.12 .2014г,№ 26 от 13.03.2015г.  (Приложение № 2)"]
["РАСПРЕДЕЛЕНИЕ"]
["бюджетных ассигнований по целевым статьям (муниципальным программам и непрограммным направлениям деятельности), группам и подгруппам видов расходов классификации расходов бюджетов, а также по разделам и подразделам классификации расходов бюджета Серебрянского сельского поселения Лужского муниципального района Ленинградской области"]
["на 2015 год"]
["Наименование",null,null,null,null,null,null,null,"ЦСР",null,"ВР","Р3 ,ПР","Сумма","Сумма (тысяч рублей)"]
[1,null,null,null,null,null,null,null,2,null,3,null,4,5]
["Всего",null,null,null,null,null,null,null,null,null,null,null,"11 488.89",{"$f":"N8+N80+N94","v":{"$error":"#REF!"}}]
[" Муниципальная программа Серебрянского сельского поселения Лужского муниципального района  \"Устойчивое развитие территории Серебрянского сельского поселения на период 2015-2017 годов\"",null,null,null,null,null,null,null,"16 0 0000",null,null,null,"6 657.00",{"$f":"N9+N31+#REF!+#REF!","v":{"$error":"#REF!"}}]
["Подпрограмма \"Развитие  культуры, физической культуры и спорта в Серебрянском сельском поселении Лужского муниципального района\"",null,null,null,null,null,null,null,"16 1 0000",null,null,null,"2 023.60",{"$f":"N10+N21+#REF!+#REF!+#REF!+#REF!+#REF!","v":{"$error":"#REF!"}}]
["Содержание муниципальных казенных учреждений культуры  в рамках подпрограммы \"Развитие  культуры, физической культуры и спорта в Серебрянском сельском поселении Лужского муниципального района муниципальной программы\"Устойчивое развитие территории Серебрянского сельского поселения на период 2015-2017 годов\"",null,null,null,null,null,null,null,"16 1 0020",null,null,null,"1 727.50",{"$f":"N11+N13+N15+N17+N19","v":1238.5}]
["Фонд оплаты труда казенных учреждений и взносы по обязательному социальному страхованию",null,null,null,null,null,null,null,"16 1 0020",null,111,null,"1150.00",{"$f":"N12","v":1084}]
["Культура",null,null,null,null,null,null,null,"16 1 0020",null,111,"08 01","1150.00",1084]
["Иные выплаты персоналу казенных учреждений, за исключением фонда оплаты труда",null,null,null,null,null,null,null,"16 1 0020",null,112,null,"15.00",{"$f":"N14","v":10}]
["Культура",null,null,null,null,null,null,null,"16 1 0020",null,112,"08 01","15.00",10]
["Иные выплаты, за исключением фонда оплаты труда казенных учреждений, лицам, привлекаемым согласно законодательству для выполнения отдельных полномочий",null,null,null,null,null,null,null,"16 1 0020",null,113,null,"2.00",{"$f":"N16","v":2}]
["Культура",null,null,null,null,null,null,null,"16 1 0020",null,113,"08 01","2.00",2]
["Прочая закупка товаров, работ и услуг для обеспечения муниципальных нужд",null,null,null,null,null,null,null,"16 1 0020",null,244,null,"550.50",{"$f":"N18","v":142}]
["Культура",null,null,null,null,null,null,null,"16 1 0020",null,244,"08 01","550.50",142]
["Уплата прочих налогов, сборов и иных платежей",null,null,null,null,null,null,null,"16 1 0020",null,852,null,"10.00",{"$f":"N20","v":0.5}]
["Культура",null,null,null,null,null,null,null,"16 1 0020",null,852,"08 01","10.00",0.5]
["Содержание муниципальных казенных библиотек  в рамках подпрограммы \"Развитие  культуры, физической культуры и спорта в Серебрянском сельском поселении Лужского муниципального района\" муниципальной программы \"Устойчивое развитие территории Серебрянского сельского поселения на период 2015-2017 годов\"",null,null,null,null,null,null,null,"16 1 0021",null,null,null,"168.60",{"$f":"N22+#REF!+N24","v":{"$error":"#REF!"}}]
["Фонд оплаты труда казенных учреждений и взносы по обязательному социальному страхованию",null,null,null,null,null,null,null,"16 1 0021",null,111,null,"138.60",{"$f":"N23","v":407}]
["Культура",null,null,null,null,null,null,null,"16 1 0021",null,111,"08 01","138.60",407]
["Прочая закупка товаров, работ и услуг для обеспечения муниципальных нужд",null,null,null,null,null,null,null,"16 1 0021",null,244,null,"30.00",{"$f":"#REF!","v":{"$error":"#REF!"}}]
["Культура",null,null,null,null,null,null,null,"16 1 0021",null,244,"08 01","30.00"]
["Софинансирование государственной программы Ленинградской области \"Развитие сельского хозяйства  Ленинградской области\"  в рамках  подпрограммы \"Развитие культуры,физической культуры и спорта в Серебрянского сельском поселении Лужского муниципального района\" муниципальной программы \"Устойчивое развитие территории Серебрянского сельского поселения на период 2015-2017годов\"",null,null,null,null,null,null,null,"16 1 0512",null,null,null,"127.5"]
["Закупка товаров , работ, услуг в целях капитального ремонта государственного (муниципального) имущества",null,null,null,null,null,null,null,"16 1 0512",null,243,"08 01","27.5"]
["Культура",null,null,null,null,null,null,null,"16 1 0512",null,243,"08 01","27.5"]
["Бюджетные инвестиции в объекты капитального строительства государственной (муниципальной)  собственности",null,null,null,null,null,null,null,"16 1 0512",null,243,"08 01","100.00"]
["Благоустройство",null,null,null,null,null,null,null,"16 1 0512",null,243,"08 01","100.00"]
["Подпрограмма \"Обеспечение устойчивого функционирования жилищно-коммунального хозяйства в Серебрянском  сельском поселении Лужского муниципального района\"",null,null,null,null,null,null,null,"16 2 0000",null,null,null,"852.80",{"$f":"N32+#REF!+#REF!+#REF!+#REF!+#REF!+#REF!+#REF!+N38+N44+#REF!+N47","v":{"$error":"#REF!"}}]
["Взносы  на капитальный ремонт общего имущества в многоквартирных домах в рамках подпрограммы \"Обеспечение устойчивого функционирования жилищно-коммунального хозяйства в Серебрянском сельском поселении Лужского муниципального района\" муниципальной программы \"Устойчивое развитие территории Серебрянского сельского поселения на период 2015-2017 годов\".",null,null,null,null,null,null,null,"16 2 0231",null,null,null,"150.00",{"$f":"N33","v":160}]
["Закупка товаров, работ, услуг в целях капитального ремонта государственного (муниципального) имущества",null,null,null,null,null,null,null,"16 2 0231",null,243,null,"150.00",{"$f":"N34","v":160}]
["Жилищное хозяйство",null,null,null,null,null,null,null,"16 2 0231",null,243,"05 01","150.00",160]
["Меропрятия по содержанию объектов водоснабжения ,водоотведения и очистки сточных вод в рамках подпрограммы \"Обеспечение устойчивого функционирования жилищно-коммунального хозяйства в Серебрянском сельском поселении Лужского муниципального района\" муниципальной программы \"Устойчивое развитие территории Серебрянского сельского поселения на период 2015-2017годов\".",null,null,null,null,null,null,null,"16 2 0159",null,null,null,"120.00",15]
["Прочая закупка товаров, работ и услуг для обеспечения муниципальных нужд",null,null,null,null,null,null,null,"16 2 0159",null,244,null,"120.00"]
["Коммунальное хозяйство",null,null,null,null,null,null,null,"16 2 0159",null,244,"05 02","120.00"]
["Субсидии на компенсацию выпадающих доходов организациям, предоставляющим населению банные услуги, по тарифам, не обеспечивающим возмещение издержек, в рамках подпрограммы \"Обеспечение устойчивого функционирования жилищно-коммунального хозяйства в Серебрянском сельском поселении Лужского муниципального района\" муниципальной программы \"Устойчивое развитие территории Серебрянского сельского поселения на период 2015-2017 годов\".",null,null,null,null,null,null,null,"16 2 0065",null,null,null,"250.00",{"$f":"N39","v":400}]
["Субсидии юридическим лицам (кроме некоммерческих организаций), индивидуальным предпринимателям, физическим лицам",null,null,null,null,null,null,null,"16 2 0065",null,810,null,"250.00",{"$f":"N43","v":400}]
["Коммунальное хозяйство",null,null,null,null,null,null,null,"16 2 0065",null,810,"05 02","250.00"]
["Мероприятия по подготовке объектов теплоснабжения к отопительному сезону на территории поселения в рамках подпрограммы \"Обеспечение устойчивого функционирования жилищно-коммунального хозяйства в Серебрянском сельском поселении Лужского муниципального района \"муниципальной программы \"Устойчивое развитие территории Серебрянского сельского поселения на период 2015-2017 годов\"",null,null,null,null,null,null,null,1620156,null,null,null,"10.0"]
["Прочая закупка товаров и услуг для обеспечения муниципальных нужд",null,null,null,null,null,null,null,1620156,null,244,null,"10.0"]
["Коммунальное хозяйство",null,null,null,null,null,null,null,1620156,null,244,502,"10.0",400]
["Мероприятия по учету и обслуживанию уличного освещения поселения в рамках подпрограммы \"Обеспечение устойчивого функционирования жилищно-коммунального хозяйства в Серебрянском сельском поселении Лужского муниципального района\" муниципальной программы \"Устойчивое развитие территории Серебрянского сельского поселения на период 2014-2016 годов\".",null,null,null,null,null,null,null,"16 2 0160",null,null,null,"150.00",{"$f":"N45","v":310}]
["Прочая закупка товаров, работ и услуг для обеспечения муниципальных нужд",null,null,null,null,null,null,null,"16 2 0160",null,244,null,"150.00",{"$f":"N46","v":310}]
["Благоустройство",null,null,null,null,null,null,null,"16 2 0160",null,244,"05 03","150.00",310]
["Прочие мероприятия по благоустройству поселений в рамках подпрограммы \"Обеспечение устойчивого функционирования жилищно-коммунального хозяйства в Серебрянском сельском поселении Лужского муниципального района\" муниципальной программы \"Устойчивое развитие территории Серебрянского сельского поселения на период 2015-2017 годов\".",null,null,null,null,null,null,null,"16 2 0162",null,null,null,"172.80",{"$f":"N48","v":100}]
["Прочая закупка товаров, работ и услуг для обеспечения муниципальных нужд",null,null,null,null,null,null,null,"16 2 0162",null,244,null,"172.80",{"$f":"N49","v":100}]
["Благоустройство",null,null,null,null,null,null,null,"16 2 0162",null,244,"05 03","172.80",100]
["Подпрограмма \"Развитие автомобильных дорог в Серебрянском сельском поселении \"",null,null,null,null,null,null,null,"16 3 0000",null,null,null,"3 685.60"]
["Обслуживание и содержание  автомобильных дорог местного значения в рамках подпрограммы \"Развитие автомобильных дорог в Серебрянском сельском поселении Лужского муниципального района\" муниципальной программы \"Устойчивое развитие территории Серебрянского сельского поселения на период 2015-2017 годов\".",null,null,null,null,null,null,null,"16 3 0115",null,null,null,"600.00",{"$f":"N52","v":150}]
["Прочая закупка товаров, работ и услуг для обеспечения муниципальных нужд",null,null,null,null,null,null,null,"16 3 0115",null,244,null,"600.00",{"$f":"N53","v":150}]
["Дорожное хозяйство.",null,null,null,null,null,null,null,"16 3 0115",null,244,"04 09","600.00",150]
["Проведение инвентаризации и оформление технических и кадастровых паспортов дорог местного значения в рамках подпрограммы \"Развитие автомобильных дорог в Серебрянском сельском поселении Лужского муниципального района\" муниципальной программы \"Устойчивое развитие территории Серебрянского сельского поселения на период 2015-2017 годов\"",null,null,null,null,null,null,null,"16 3 0116",null,null,null,"172.62"]
["Прочая закупка товаров, работ и услуг для обеспечения муниципальных нужд",null,null,null,null,null,null,null,"16 3 0116",null,244,null,"172.62"]
["Дорожное хозяйство.",null,null,null,null,null,null,null,"16 3 0116",null,244,"04 09","172.62"]
["Мероприятия по капитальному ремонту и ремонту автомобильных дорог общего пользования местного значения в рамках подпрограммы \"Развитие автомобильных дорог в Серебрянском сельском поселении Лужского муниципального района\" муниципальной программы \"Устойчивое развитие территории Серебрянского сельского поселения на период 2015-2017 годов\".",null,null,null,null,null,null,null,"16 3 0165",null,null,null,"537.48",{"$f":"N58","v":50}]
["Прочая закупка товаров, работ и услуг для обеспечения муниципальных нужд",null,null,null,null,null,null,null,"16 3 0165",null,244,null,"537.48",{"$f":"N59","v":50}]
["Дорожное хозяйство.",null,null,null,null,null,null,null,"16 3 0165",null,244,"04 09","537.48",50]
["Софинансирование государственной программы Ленинградской области \"Развитие автомобильных дорог Ленинградской области\"  в рамках  подпрограммы \"Развитие автомобильных дорог в Серебрянского сельском поселении Лужского муниципального района\" муниципальной программы \"Устойчивое развитие территории Серебрянского сельского поселения на период 2015-2017 годов\".",null,null,null,null,null,null,null,"16 3 0514",null,null,null,"2375.50",{"$f":"N61","v":147}]
["Закупка товаров, работ, услуг в целях капитального ремонта государственного (муниципального) имущества",null,null,null,null,null,null,null,"16 3 0514",null,243,null,"2375.50",{"$f":"N62","v":147}]
["Дорожное хозяйство.",null,null,null,null,null,null,null,"16 3 0514",null,243,"04 09","2375.50",147]
["Подпрограмма \"Безопасность  Серебрянского сельского поселения Лужского муниципального района \"",null,null,null,null,null,null,null,"16 4 0000",null,null,null,"95.00"]
["Мероприятия по предупреждению и ликвидации последствий чрезвычайных ситуаций и стихийных бедствий в рамках подпрограммы \"Безопасность Серебрянского сельского поселения Лужского муниципального района\" муниципальной программы \"Устойчивое развитие территории Серебрянского сельского поселения на период 2015-2017 годов\" ",null,null,null,null,null,null,null,"16 4 0117",null,null,null,"15.00"]
["Прочая закупка товаров, работ и услуг для обеспечения муниципальных нужд",null,null,null,null,null,null,null,"16 4 0117",null,244,null,"15.00"]
["Защита населения и территории от чрезвычайных ситуаций природного и техногенного характера, гражданская оборона",null,null,null,null,null,null,null,"16 4 0117",null,244,"03 09","15.00"]
["Осуществление мероприятий по обеспечению безопасности людей на водных объектах в рамках подпрограммы \"Безопасность Серебрянского сельского поселения Лужского муниципального района\" муниципальной программы \"Устойчивое развитие территории Серебрянского сельского поселения на период 2015-2017 годов\".",null,null,null,null,null,null,null,"16 4 0118",null,null,null,"10.00"]
["Прочая закупка товаров, работ и услуг для обеспечения муниципальных нужд",null,null,null,null,null,null,null,"16 4 0118",null,244,null,"10.00"]
["Защита населения и территории от чрезвычайных ситуаций природного и техногенного характера, гражданская оборона",null,null,null,null,null,null,null,"16 4 0118",null,244,"03 09","10.00"]
["Укрепление  пожарной безопасности на территории поселений  в рамках подпрограммы \"Безопасность Серебрянского сельского поселения Лужского муниципального района\" муниципальной программы \"Устойчивое развитие территории Серебрянское сельского поселения на период 2015-2017 годов\".",null,null,null,null,null,null,null,"16 4 0122",null,null,null,"70.00"]
["Прочая закупка товаров, работ и услуг для обеспечения муниципальных нужд",null,null,null,null,null,null,null,"16 4 0122",null,244,null,"70.00",{"$f":"N72","v":{"$error":"#REF!"}}]
["Обеспечение пожарной безопасности ",null,null,null,null,null,null,null,"16 4 0122",null,244,"03 10","70.00",{"$f":"#REF!","v":{"$error":"#REF!"}}]
["Обеспечение деятельности органов местного самоуправления",null,null,null,null,null,null,null,"98 0 0000",null,null,null," 4 177.60",8.9]
["Обеспечение деятельности главы администрации муниципального образования",null,null,null,null,null,null,null,"98 2 0000",null,null,null,"756.00",{"$f":"N75","v":150}]
["Расходы на обеспечение  функций органов местного самоуправления в рамках обеспечения деятельности главы  администрации муниципального образования  ",null,null,null,null,null,null,null,"98 2 0012",null,null,null,"756.00",{"$f":"N79","v":150}]
["Фонд оплаты труда государственных (муниципальных) органов и взносы по обязательному страхованию",null,null,null,null,null,null,null,"98 2 0012",null,121,null,"736.00"]
["Функционирование Правительства Российской Федерации, высших исполнительных органов государственной власти субъектов Российской Федерации, местных администраций",null,null,null,null,null,null,null,"98 2 0012",null,121,"01 04","736.00"]
["Иные выплаты персоналу государственных (муниципальных) органов, за исключением фонда оплаты труда",null,null,null,null,null,null,null,"98 2 0012",null,122,null,"20.00"]
["Функционирование Правительства Российской Федерации, высших исполнительных органов государственной власти субъектов Российской Федерации, местных администраций",null,null,null,null,null,null,null,"98 2 0012",null,122,"01 04","20.00",150]
["Обеспечение деятельности  администрации муниципального образования",null,null,null,null,null,null,null,"98 3 0000",null,null,null,"3 421.60",{"$f":"N81+N87+#REF!","v":{"$error":"#REF!"}}]
["Расходы на обеспечение  функций органов местного самоуправления в рамках обеспечения деятельности    администрации муниципального образования  ",null,null,null,null,null,null,null,"98 3 0012",null,null,null,"3 421.60",{"$f":"N82","v":528}]
["Фонд оплаты труда государственных (муниципальных) органов и взносы по обязательному страхованию",null,null,null,null,null,null,null,"98 3 0012",null,121,null,"1 988.60",{"$f":"N83+N85","v":528}]
["Функционирование Правительства Российской Федерации, высших исполнительных органов государственной власти субъектов Российской Федерации, местных администраций",null,null,null,null,null,null,null,"98 3 0012",null,121,"01 04"," 1 988.60",{"$f":"N84","v":527.79999999999995}]
["Иные выплаты персоналу государственных (муниципальных) органов, за исключением фонда оплаты труда",null,null,null,null,null,null,null,"98 3 0012",null,122,null,"120.00",527.79999999999995]
["Функционирование Правительства Российской Федерации, высших исполнительных органов государственной власти субъектов Российской Федерации, местных администраций",null,null,null,null,null,null,null,"98 3 0012",null,122,"01 04","120.00",{"$f":"N86","v":0.2}]
["Прочая закупка товаров, работ и услуг для обеспечения муниципальных нужд",null,null,null,null,null,null,null,"98 3 0012",null,244,null,"1 303.00",0.2]
["Функционирование Правительства Российской Федерации, высших исполнительных органов государственной власти субъектов Российской Федерации, местных администраций",null,null,null,null,null,null,null,"98 3 0012",null,244,"01 04","1 303.00",{"$f":"N88","v":{"$error":"#REF!"}}]
["Уплата прочих налогов, сборов и иных платежей",null,null,null,null,null,null,null,"98 3 0012",null,852,null,"10.00",{"$f":"N89+#REF!+#REF!+#REF!+#REF!+#REF!+N92","v":{"$error":"#REF!"}}]
["Функционирование Правительства Российской Федерации, высших исполнительных органов государственной власти субъектов Российской Федерации, местных администраций",null,null,null,null,null,null,null,"98 3 0012",null,852,"01 04","10.00",{"$f":"N90","v":1003}]
["Непрограммные расходы органов местного самоуправления ",null,null,null,null,null,null,null,"99 9 0000",null,null,null,"654.29",1003]
["Иные межбюджетные трансферты на осуществление части полномочий по решению вопросов местного значения поселений в соответствии с заключенными соглашениями по организации и осуществлению мероприятий по ГО и ЧС в рамках непрограммных расходов органов местного самоуправления",null,null,null,null,null,null,null,"99 9 0081",null,null,null,"14.13",392.8]
["Иные межбюджетные трансферты",null,null,null,null,null,null,null,"99 9 0081",null,540,null,"14.13",{"$f":"N93","v":4}]
["Функционирование Правительства Российской Федерации, высших исполнительных органов государственной власти субъектов Российской Федерации, местных администраций",null,null,null,null,null,null,null,"99 9 0081",null,540,"01 04","14.13",4]
["Иные межбюджетные трансферты на осуществление части полномочий по решению вопросов местного значения поселений в соответствии с заключенными соглашениями по организации и осуществлению мероприятий по градостроительству и землеустройству в рамках непрограммных расходов органов местного самоуправления",null,null,null,null,null,null,null,"99 9 0082",null,null,null,"65.80",{"$f":"N96+N101+N103+N106+#REF!+N116+N119+N122+N127+N133","v":{"$error":"#REF!"}}]
["Иные межбюджетные трансферты",null,null,null,null,null,null,null,"99 9 0082",null,540,null,"65.80"]
["Функционирование Правительства Российской Федерации, высших исполнительных органов государственной власти субъектов Российской Федерации, местных администраций",null,null,null,null,null,null,null,"99 9 0082",null,540,"01 04","65.80",{"$f":"N99","v":11}]
["Иные межбюджетные трансферты на осуществление части полномочий по решению вопросов местного значения поселений в соответствии с заключенными соглашениями по исполнению бюджета поселенийв рамках непрограммных расходов органов местного самоуправления",null,null,null,null,null,null,null,"99 9 0083",null,null,null,"108.56"]
["Иные межбюджетные трансферты",null,null,null,null,null,null,null,"99 9 0083",null,540,null,"108.56"]
["Функционирование Правительства Российской Федерации, высших исполнительных органов государственной власти субъектов Российской Федерации, местных администраций",null,null,null,null,null,null,null,"99 9 0083",null,540,"01 04","108.56",{"$f":"N100","v":11}]
["Резервный фонд администрации муниципального образования  в рамках непрограммных расходов органов местного самоуправления ",null,null,null,null,null,null,null,"99 9 0101",null,870,null,"10.00",11]
["Резервные средства",null,null,null,null,null,null,null,"99 9 0101",null,870,"01 11","10.00",{"$f":"#REF!","v":{"$error":"#REF!"}}]
["Исполнение судебных актов, вступивших в законную силу по искам к муниципальному образованию в рамках непрограммных расходов",null,null,null,null,null,null,null,"99 9 0102",null,null,null,"47.51",42,null,null,","]
["Исполнение судебных актовРоссийской Федерации и мировых соглашений по возмещению  вреда, причиненного в результате незаконных действий (бездействия) органов государственной власти (государственных органов), органов местного самоуправления либо должностных лиц этих органов, а также в результате деятельности казенных учреждений.",null,null,null,null,null,null,null,"99 9 0102",null,831,null,"47.51",{"$f":"N104","v":86}]
["Функционирование Правительства Российской Федерации, высших исполнительных органов государственной власти субъектов Российской Федерации, местных администраций",null,null,null,null,null,null,null,"99 9 0102",null,831,"01 13","47.51",{"$f":"N105","v":86}]
["Оценка недвижимости, признание прав и регулирование отношений по муниципальной собственности в рамках непрограммнных расходов органов местного самоуправления",null,null,null,null,null,null,null,"99 9 0104",null,244,null,"38.09",86]
["Прочая закупка товаров, работ и услуг для обеспечения муниципальных нужд",null,null,null,null,null,null,null,"99 9 0104",null,244,"01 13","38.09",{"$f":"N107","v":10}]
["Другие общегосударственные вопросы",null,null,null,null,null,null,null,"99 9 0104",null,244,"01 13","38.09",{"$f":"N108","v":10}]
["Мероприятия по землеустройству и землепользованию в рамках непрограммных расходов органов   местного самоуправления ",null,null,null,null,null,null,null,"99 9 0105",null,null,null,"20.00",10]
["Мероприятия по землеустройству и землепользованию в рамках непрограммных расходов органов   местного самоуправления ",null,null,null,null,null,null,null,"99 9 0105",null,null,null,"20.00"]
["Прочая закупка товаров и услуг для обеспечения муниципальных нужд",null,null,null,null,null,null,null,"99 9 0105",null,244,null,"20.00"]
["Другие вопросы в области национальной экономики",null,null,null,null,null,null,null,"99 9 0105",null,244,"04 12","20.00"]
["Мероприятия в области строительства, архитектуры и градостроительства  в рамках непрограммных расходов органов местного самоуправления ",null,null,null,null,null,null,null,"99 9 0106",null,244,null,"180.00"]
["Прочая закупка товаров, работ и услуг для обеспечения муниципальных нужд",null,null,null,null,null,null,null,"99 9 0106",null,244,null,"180.00"]
["Другие вопросы в области национальной экономики",null,null,null,null,null,null,null,"99 9 0106",null,244,"04 12","180.00",{"$f":"N115","v":20}]
["На осуществление первичного воинского учета на территориях, где отсутствуют военные комиссариаты в рамках непрограммных расходов органов  местного самоуправления ",null,null,null,null,null,null,null,"99 9 5118",null,null,null,"99.20",20]
["Фонд оплаты труда государственных (муниципальных) органов и взносы по обязательному страхованию",null,null,null,null,null,null,null,"99 9 5118",null,121,null,"81.27",{"$f":"N117","v":69.7}]
["Мобилизационная и вневойсковая подготовка",null,null,null,null,null,null,null,"99 9 5118",null,121,"02 03","81.27",{"$f":"N118","v":69.7}]
["Прочая закупка товаров, работ и услуг для обеспечения муниципальных нужд",null,null,null,null,null,null,null,"99 9 5118",null,244,null,"17.93",69.7]
["Мобилизационная и вневойсковая подготовка",null,null,null,null,null,null,null,"99 9 5118",null,244,"02 03","17.93",{"$f":"N120","v":30.3}]
["На обеспечение выполнения органами местного самоуправления муниципальных образований отдельных государственных полномочий Ленинградской области в сфере административных правоотношений в рамках непрограммных расходов органов  местного самоуправления ",null,null,null,null,null,null,null,"99 9 7134",null,null,null,"1.00",{"$f":"N121","v":30.3}]
["Прочая закупка товаров, работ и услуг для обеспечения муниципальных нужд",null,null,null,null,null,null,null,"99 9 7134",null,244,null,"1.00",30.3]
["Функционирование Правительства Российской Федерации, высших исполнительных органов государственной власти субъектов Российской Федерации, местных администраций",null,null,null,null,null,null,null,"99 9 7134",null,244,"01 04","1.00",{"$f":"N123+N125","v":98.8}]
["Доплата к пенсиям муниципальных служащих в рамках непрограммных расходов органов местного самоуправления",null,null,null,null,null,null,null,"99 9 0030",null,null,null,"70.00",{"$f":"N124","v":90}]
["Пособия, компенсация и иные выплаты гражданам, кроме публичных нормативных обязательств",null,null,null,null,null,null,null,"99 9 0030",null,321,"10 01","70.00",90]
["Пенсионное обеспечение",null,null,null,null,null,null,null,"99 9 0030",null,321,"10 01","70.00",{"$f":"N126","v":8.8000000000000007}]
[null,null,null,null,null,null,null,null,null,null,null,null,null,8.8000000000000007]
[null,null,null,null,null,null,null,null,null,null,null,null,null,{"$f":"N128","v":1}]
[null,null,null,null,null,null,null,null,null,null,null,null,null,{"$f":"N129","v":1}]
[null,null,null,null,null,null,null,null,null,null,null,null,null,1]
[]
[]
[]
[null,null,null,null,null,null,null,null,null,null,null,null,null,{"$f":"N134","v":120}]
[null,null,null,null,null,null,null,null,null,null,null,null,null,{"$f":"N135","v":120}]
[null,null,null,null,null,null,null,null,null,null,null,null,null,120]